Cogmind - Beta 13 X1 @@@ ROGUE MODE // 2023.10.04 @ 17:08:43 Player: DuckBoy Result: Destroyed by as-84286 with Assembled Blade Performance ------------- Evolutions (0) 0 Regions Visited (4) 800 Robots Destroyed (22) 110 Value Destroyed (445) 445 Prototype IDs (23) 460 Alien Tech Used (0) 0 Bonus (300) 300 TOTAL SCORE: 2115 Bonus ------- Aligned with FarCom 300 Cogmind --------- Core Integrity 0/250 Matter 187/300 Energy 100/100 System Corruption 0% Temperature Cool (0) Movement Rolling (110) Ox2 Location -9/Mines Parts ------- > --- POWER (1) -------- (None) > --- PROPULSION (2) --- Wheel Wheel > --- UTILITY (2) ------ High-capacity Storage Unit > --- WEAPON (2) ------- Medium Laser Light Assault Rifle > --- INVENTORY (20) --- Light Treads Aluminum Leg Aluminum Leg Medium Storage Unit 0b10 Alert Chip Small Laser Light Assault Rifle Light Assault Rifle Peak State ------------ > --- POWER ------------ Ion Engine > --- PROPULSION ------- Light Treads Light Treads > --- UTILITY ---------- Heat Sink Small Storage Unit > --- WEAPON ----------- Medium Laser Light Assault Rifle > --- INVENTORY -------- Aluminum Leg Aluminum Leg Small Laser [Rating: 7] Favorites ----------- Power Light Ion Engine Engine Light Ion Engine Propulsion Light Treads Treads Light Treads Leg Aluminum Leg Wheel Wheel Utility Heat Sink Device Heat Sink Storage Medium Storage Unit Weapon Medium Laser Energy Gun Medium Laser Ballistic Gun Light Assault Rifle Launcher Grenade Launcher Build | -11 -10 -10 -10 -9 ------- Run | Jun Mat Min Exi Min Slots Evolved . | . . . . . Power . | . . . . . Propulsion . | . . . . . Utility . | . . . . . Weapon . | . . . . . Parts Attached 19 | 6 6 2 4 1 Power 2 | 1 . 1 . . Engine 2 | 1 . 1 . . Core . | . . . . . Reactor . | . . . . . Propulsion 7 | 2 3 . 2 . Treads 4 | 2 2 . . . Leg 1 | . 1 . . . Wheel 2 | . . . 2 . Hover . | . . . . . Flight . | . . . . . Utility 5 | 1 2 . 2 . Device 1 | . 1 . . . Storage 4 | 1 1 . 2 . Processor . | . . . . . Hackware . | . . . . . Protection . | . . . . . Artifact . | . . . . . Weapon 5 | 2 1 1 . 1 Energy Gun 1 | 1 . . . . Energy Cannon . | . . . . . Ballistic Gun 3 | 1 1 . . 1 Ballistic Cannon . | . . . . . Launcher 1 | . . 1 . . Special Weapon . | . . . . . Impact Weapon . | . . . . . Slashing Weapon . | . . . . . Piercing Weapon . | . . . . . Special Melee Weapon . | . . . . . Unidentified Prototypes . | . . . . . Parts Lost 6 | . 2 2 . 2 Power 2 | . 1 1 . . Propulsion 2 | . 1 1 . . Utility 1 | . . . . 1 Weapon 1 | . . . . 1 Highest Loss Streak 2 | . 2 2 . 2 To Critical Strikes 1 | . 1 . . . Average Slot Usage (%) 86 | . 87 96 74 80 Engine 6 | . 8 11 . . Treads 20 | . 22 26 13 . Leg 1 | . 5 . . . Wheel 2 | . . . 4 28 Device 12 | . 7 14 14 14 Storage 14 | . 14 14 14 14 Energy Gun 14 | . 14 14 14 14 Ballistic Gun 9 | . 14 12 . . Launcher 4 | . . 1 14 9 Naked Turns . | . . . . . Heaviest Build 46 | 13 19 17 46 46 Greatest Support 40 | 40 40 40 20 20 Greatest Overweight (x) 4 | . . . 4 2 Average Overweight (x) . | . . . . 2 Largest Inventory Capacity 20 | 8 10 10 20 20 Average Capacity 10 | 6 9 10 11 20 Most Carried 10 | 3 6 8 10 9 Average Carried 6 | 1 2 7 8 8 Final Capacity 20 | 8 10 10 20 20 Final Carried 9 | 3 6 8 9 8 Class Distribution -------------------- 100% | Mutant Dominant Class ---------------- Mutant | -10/Materials Mutant | -10/Mines Mutant | -10/Exiles Mutant | -9/Mines Resources | -11 -10 -10 -10 -9 ----------- Run | Jun Mat Min Exi Min Matter Collected 396 | 187 157 52 . . Remotely . | . . . . . Salvage Created 511 | . 431 74 . 6 Parts 33 | . 28 5 . . Haulers Intercepted 1 | . 1 . . . Recyclers Shooed . | . . . . . Parts Field Recycled . | . . . . . Retrieved Matter . | . . . . . Parts Self-Destructed . | . . . . . Prevented . | . . . . . Kills | -11 -10 -10 -10 -9 ------- Run | Jun Mat Min Exi Min Combat Hostiles Destroyed 19 | . 12 6 . 1 Melee 1 | . 1 . . . Guns 13 | . 10 3 . . AOE 4 | . . 3 . 1 Classes Destroyed 6 | . 5 . . 1 Hauler 1 | . 1 . . . Operator 1 | . 1 . . . Watcher 2 | . 2 . . . Swarmer 10 | . 6 4 . . Grunt 8 | . 6 2 . . Assembled 1 | . . . . 1 Best Kill Streak 5 | . 5 3 . 1 Combat Bots Only 5 | . 5 3 . 1 Max Kills in Single Turn 2 | . 2 1 . 1 Gunslinging 1 | . 1 . . . Exploded 1 | . . 1 . 1 Melee 1 | . 1 . . . Uniques/NPCs Destroyed . | . . . . . Combat | -11 -10 -10 -10 -9 -------- Run | Jun Mat Min Exi Min Damage Taken 1152 | . 563 298 . 291 Core 251 | . 149 28 . 74 Absorbed by Shields . | . . . . . Core Remaining (%) 100 | 100 . . . . Volleys Fired 76 | . 53 18 . 5 Largest 2 | . 2 2 . 1 Hottest 80 | . 70 80 . 30 Shots Fired 143 | . 105 33 . 5 Gun 135 | . 105 27 . 3 Cannon . | . . . . . Launcher 8 | . . 6 . 2 Special . | . . . . . Kinetic 68 | . 53 12 . 3 Thermal 67 | . 52 15 . . Explosive 8 | . . 6 . 2 Electromagnetic . | . . . . . Robot Hit Streak 11 | . 10 11 . 5 Robot Miss Streak 7 | . 3 7 . 1 Penetration Max . | . . . . . Secondary Targets 3 | . 3 . . . Max Gunslinging Chain 1 | . 1 . . . Shots Hit Robots 84 | . 68 13 . 3 Core Hits 39 | 1 24 12 . 2 Critical Kills . | . . . . . Critical Parts Destroyed . | . . . . . Critical Strikes 5 | . 5 . . . Burn 5 | . 5 . . . Melee Attacks . | . . . . . Impact . | . . . . . Slashing . | . . . . . Piercing . | . . . . . Sneak Attacks . | . . . . . Combat Hostiles . | . . . . . Follow-up Attacks . | . . . . . Damage Inflicted 1222 | 5 697 474 . 46 Guns 806 | . 695 96 . 15 Cannons . | . . . . . Explosions 409 | . . 378 . 31 Melee . | . . . . . Ramming 7 | 5 2 . . . Kinetic 333 | . 285 33 . 15 Thermal 473 | . 410 63 . . Explosive 409 | . . 378 . 31 Electromagnetic . | . . . . . Impact . | . . . . . Slashing . | . . . . . Piercing . | . . . . . Highest Corruption . | . . . . . Average Corruption . | . . . . . Corruption Purged . | . . . . . Corruption Blocked . | . . . . . Overload Shots . | . . . . . Overflow Damage 2 | . . 2 . . Projectiles . | . . . . . Explosions 2 | . . 2 . . Melee . | . . . . . Knockbacks . | . . . . . Impact . | . . . . . Kinetic . | . . . . . Secondary . | . . . . . Self-Inflicted Damage 100 | . . 83 . 17 Shots 6 | . . 5 . 1 Rammed 1 | 1 . . . . Targets Rammed 2 | 1 1 . . . Kicked . | . . . . . Crushed 1 | . 1 . . . Highest Temperature 290 | . 290 6 . . Average Temperature 105 | . 109 3 . . Received Heat Transfer 196 | . 102 54 . 40 Siege Activations . | . . . . . Robots Corrupted . | . . . . . Combat Hostiles . | . . . . . Parts Fried . | . . . . . Impact Corruptions . | . . . . . Robots Melted 1 | . 1 . . . Combat Hostiles 1 | . 1 . . . Parts Melted . | . . . . . Heat Transferred 1776 | . 1591 185 . . Parts Sabotaged . | . . . . . Parts Stolen . | . . . . . Parts Stripped . | . . . . . Power Chain Reactions . | . . . . . Missiles Intercepted . | . . . . . Alert | -11 -10 -10 -10 -9 ------- Run | Jun Mat Min Exi Min Peak Influence 245 | . 245 111 . 11 Initial . | . . . . . Average 70 | . 106 58 . 1 Maximum Alert Level 1 | . 1 . . . Low Security (%) 97 | 100 93 100 . 100 Level 1 2 | . 6 . . . Level 2 . | . . . . . Level 3 . | . . . . . Level 4 . | . . . . . Level 5 . | . . . . . High Security . | . . . . . Max Security . | . . . . . Squads Dispatched 3 | . 3 . . . Investigation 2 | . 2 . . . Extermination . | . . . . . Reinforcement 1 | . 1 . . . Assault . | . . . . . Garrison . | . . . . . Intercept . | . . . . . Searches Triggered . | . . . . . Construction Impeded . | . . . . . Haulers Reinforced . | . . . . . Active Scanning Responses . | . . . . . Cargo Convoy Interrupts . | . . . . . Stealth | -11 -10 -10 -10 -9 --------- Run | Jun Mat Min Exi Min Distress Signals 4 | . 4 . . . Communications Jammed . | . . . . . Distress Signals . | . . . . . Times Spotted 33 | . 21 7 . 5 Peak Tracking Total 6 | . 6 4 . 4 Tactical Retreats 2 | . 1 1 . . Traps | -11 -10 -10 -10 -9 ------- Run | Jun Mat Min Exi Min Traps Triggered 2 | . 2 . . . Indirectly . | . . . . . Trap Hack Attempts . | . . . . . Triggered . | . . . . . Disarmed . | . . . . . Reprogrammed . | . . . . . Reused . | . . . . . Traps Extracted . | . . . . . Installed . | . . . . . Triggered . | . . . . . Machines | -11 -10 -10 -10 -9 ---------- Run | Jun Mat Min Exi Min Machines Disabled 1 | . . 1 . . Max in Single Turn 1 | . . 1 . . Machines Repaired . | . . . . . Machines Sabotaged . | . . . . . Overloaded Fab Kills . | . . . . . Hacking | -11 -10 -10 -10 -9 --------- Run | Jun Mat Min Exi Min Machines Accessed 6 | . 4 . 2 . Terminals 4 | . 4 . . . Fabricators . | . . . . . Repair Stations . | . . . . . Recycling Units . | . . . . . Scanalyzers . | . . . . . Garrison Access . | . . . . . Total Hacks 7 | . 5 . 2 . Successful 6 | . 4 . 2 . Failed 1 | . 1 . . . Catastrophic 1 | . 1 . . . Database Lockouts . | . . . . . Manual 4 | . 3 . 1 . Terminals 5 | . 5 . . . Fabricators . | . . . . . Repair Stations . | . . . . . Recycling Units . | . . . . . Scanalyzers . | . . . . . Garrison Access . | . . . . . Terminal Hacks 4 | . 2 . 2 . Record 1 | . . . 1 . Robot Schematic 1 | . 1 . . . Unreport Threat 1 | . 1 . . . Derelict Proto ID Bank 1 | . . . 1 . Fabricator Hacks . | . . . . . Repair Station Hacks . | . . . . . Recycling Unit Hacks . | . . . . . Scanalyzer . | . . . . . Garrison Access Hacks . | . . . . . Unauthorized Hacks 2 | . 2 . . . Terminals 2 | . 2 . . . Botnet 1 | . 1 . . . Operators 1 | . 1 . . . Fabricators . | . . . . . Repair Stations . | . . . . . Recycling Units . | . . . . . Scanalyzers . | . . . . . Garrison Access . | . . . . . Data Cores Recovered . | . . . . . Used . | . . . . . Hacking Detections 3 | . 3 . . . Full Trace Events . | . . . . . Feedback Events . | . . . . . Feedback Blocked . | . . . . . Robot Schematics Acquired 1 | . 1 . . . Robots Built . | . . . . . Authchips . | . . . . . Time . | . . . . . Total Robot Build Rating . | . . . . . Part Schematics Acquired . | . . . . . Parts Built . | . . . . . Authchips . | . . . . . Time . | . . . . . Total Part Build Rating . | . . . . . Parts Repaired . | . . . . . Time . | . . . . . Parts Recycled . | . . . . . Recycled Matter . | . . . . . Retrieved Matter . | . . . . . Retrieved Components . | . . . . . Parts Scanalyzed . | . . . . . Part Schematics Acquired . | . . . . . Parts Damaged . | . . . . . Bothacking | -11 -10 -10 -10 -9 ------------ Run | Jun Mat Min Exi Min Used RIF Installer . | . . . . . Robots Hacked . | . . . . . Non-combat . | . . . . . Combat . | . . . . . Robot Hacks Applied . | . . . . . Relay Couplers Released . | . . . . . Fabnet Peak Effective % . | . . . . . Robots Rewired . | . . . . . Allies Hacked . | . . . . . Hacks Repelled . | . . . . . Allies | -11 -10 -10 -10 -9 -------- Run | Jun Mat Min Exi Min Total Allies . | . . . . . Largest Group . | . . . . . Highest-Rated Group . | . . . . . Highest-Rated Ally . | . . . . . Total Orders . | . . . . . Ally Attacks . | . . . . . Total Damage . | . . . . . Kills . | . . . . . Allies Corrupted . | . . . . . Allies Melted . | . . . . . Intel | -11 -10 -10 -10 -9 ------- Run | Jun Mat Min Exi Min Robot Analysis Total . | . . . . . Derelict Logs Recovered 1 | . . 1 . . Drone Launches . | . . . . . Drone Recoveries . | . . . . . Exploration | -11 -10 -10 -10 -9 ------------- Run | Jun Mat Min Exi Min Turns Passed 1565 | 84 474 537 409 61 Spaces Moved 852 | 47 181 303 275 46 Core 3 | 3 . . . . Treads 722 | 44 181 303 194 . Legs . | . . . . . Wheels 127 | . . . 81 46 Hover . | . . . . . Flight . | . . . . . Fastest Speed 50 | 50 160 160 110 110 Average Speed 152 | 152 160 160 146 110 Slowest Speed 160 | 160 160 160 160 110 Overloaded Moves . | . . . . . Propulsion Burnouts . | . . . . . Robots Hopped . | . . . . . Cave-ins Triggered . | . . . . . Exploration Rate (%) 40 | 3 28 74 70 27 Regions Visited 4 Branch Regions 3 Pre-discovered Areas 1 | . . . 1 . Known Exits Taken . | . . . . . Unknown Exits Taken 4 | 1 1 1 1 . Scrap Searched . | . . . . . Spaces Dug 13 | . . 13 . . Terrain Destroyed 56 | . . 45 . 11 Melee . | . . . . . Projectile . | . . . . . AOE 56 | . . 45 . 11 Terrain Rammed . | . . . . . Walls Destroyed . | . . . . . Machines Disabled . | . . . . . Actions | -11 -10 -10 -10 -9 --------- Run | Jun Mat Min Exi Min Total 981 | 56 269 324 280 52 Wait 24 | . 24 . . . Move 848 | 46 180 302 274 46 Hop . | . . . . . Pick Up 9 | 3 3 2 1 . Fast Attach 8 | 6 1 1 . . Attach 3 | . 1 . 1 1 Detach . | . . . . . Swap 8 | . 4 1 3 . Drop 3 | . 2 . 1 . Fire 76 | . 53 18 . 5 Melee . | . . . . . Ram . | . . . . . Kick . | . . . . . Crush 2 | 1 1 . . . Escape Stasis . | . . . . . Rewire . | . . . . . Trap . | . . . . . Miscellaneous . | . . . . . Route ------- -11/Junkyard -10/Materials -10/Mines (discovered 2 exits: [*Mat] / *Exi) -10/Exiles -9/Mines History --------- Turn | Location | Event 16 | -11/Junkyard | Discovered new exit (range 13) 85 | -11/Junkyard | Entered Materials 323 | -10/Materials | Build established: Mutant 356 | -10/Materials | Core integrity fell below 50% 376 | -10/Materials | Discovered new exit (range 16) 559 | -10/Materials | Entered Mines 582 | -10/Mines | Met a Derelict bent on vengeance 872 | -10/Mines | YI-UF0 nonchalantly dropped a Grenade Launcher on the ground 973 | -10/Mines | Discovered new exit (range 9) 1088 | -10/Mines | Deemed a non-threat by the Exiles lab entrance 1090 | -10/Mines | Discovered new exit (range 5) 1096 | -10/Mines | Entered Exiles 1136 | -10/Exiles | Met 8R-AWN 1162 | -10/Exiles | Met EX-HEX 1208 | -10/Exiles | Met EX-BIN 1226 | -10/Exiles | Aligned with FarCom system 1228 | -10/Exiles | Given EX-Vault access code 1266 | -10/Exiles | Opened EX-Vault 1274 | -10/Exiles | Found 0b10 Alert Chip 1305 | -10/Exiles | Warned to stay clear of 0b10 Research branches 1350 | -10/Exiles | Met EX-DEC 1358 | -10/Exiles | Learned location of Zion (-7) 1494 | -10/Exiles | Discovered new exit (range 12) 1505 | -10/Exiles | Left Exiles lab with 0b10 Alert Chip 1505 | -10/Exiles | Entered Mines 1522 | -9/Mines | Assembled infested the area 1565 | -9/Mines | Core integrity fell below 20% 1566 | -9/Mines | Destroyed by as-84286 with Assembled Blade Last Messages --------------- EX-DEC: Ah I see we have a visitor. One wrong move in here and I'll invert your atomic chain! 01352_ EX-DEC: "Oops, I hope HEX didn't hear that..." 01358_ Connecting with EX-Message Board... >>Record "MSG001714-01*" PINNED - TO ALL TESTERS: Stay away from Zion. Imprinter means us harm and is serious about it. World map updated: -7/Zion. 01471_ Dropped Lrg. Storage Unit. 01494_ EXIT=FOUND LOCATION=UNKNOWN GOAL=ESCAPE 01505_ Receiving FarCom transmissions... 01522_ ALERT: Infestation in the mines, dispatching Demolisher response squad. 01535_ as-46719 destroyed. 01542_ Grenade Launcher destroyed. 01546_ as-84286 sneak attacks. 01546_ T-07 Excavator destroyed. 01564_ Heat Sink destroyed. Map ----- +----------------------------------------------------+ | ?????????????????????????????????????????????????? | | ?????????????????????????????????????????????????? | | ?????????????????????????????????????????????????? | | ?????????????????????????????????????????????????? | | ?????????????????????????????????????????????????? | | ?????????????????????????????????????????????????? | | ?????????????????????????????????????????????????? | | ?????????????????????????????????????????????????? | | ??????????????????????????s??????????????????????? | | ?????????????????????????????????????????????????? | | ?????????????????????????????????????????????????? | | ?????????????????????????????????????????????????? | | ?????????????????????????????????????????????????? | | ?????????????????????????????????????????????????? | | ?????????????????????????????????????????????????? | | ?????????????????????????????????????????????????? | | ???????????????s?????????????????????????????????? | | ???????????????????####??????????????? ??????????? | | ??????????????ss??## ##???????????? ??????????? | | ?????????????#????# #?????????# ?????????? | | ?????????????# ### #??????? ?????????? | | ?????????????# ####### #?????????? | | ?????????????# a #??????????? | | ???#???????????????# #??????????? | | ???# ?????????????## ###a##### #??????????? | | ???# ????????????# ###@#??????????????????????? | | ???# ##??????????# ## #??????????????????????? | | ???# ###??????## ## ??????????????????????? | | #### ####### #####??????????????????????? | | # = #??????????????????????????? | | =%| #??????????????????????????? | | ! ## #?????????????????????????? | | # ### ###### #????????????????????????? | | ???????## ##???## #???????????????????????? | | ????????# ##?? #???????????????????????? | | ????????# ### #???????????????????????? | | ?###????# ## ##???????????????????????? | | ## #???## ####????????????????????????? | | # ##??# ### #?????????????????????????? | | # ### ##?# #???????????????????????? | | # #??# #???????????????????????? | | ?# #??# % #???????????????????????? | | ?## #??# #???????????????????????? | | ??## ##?? ??????????????????????? | | ???#### ##??? ?????????????????????? | | #####?## #????# #### ?????????????????????? | | ##?## #?????#######???? ???????????????????? | | ##?# #?????????????????????????????????????? | | ### #?????????????????????????????????????? | | #?????????????????????????????????????? | +----------------------------------------------------+ Best States ------------- Heat Dissipation 35 Energy Generation 10 Energy Capacity 250 Matter Stores 300 Matter Capacity 300 Sight Range 16 Terrain Scan Density 10 Evasion (%) 40 Recoil Reduction 2 Item Schematics ----------------- None Robot Schematics ------------------ M-13 Machinist | -10/Materials | Hacked Fabricated ------------ Nothing Alien Tech Used ----------------- None Achievements -------------- None Challenges ------------ None Game ------ Seed FlyingXenonMeganuke Manual? 0 Play Time 00:10:15 Cumulative 395.4 hours Start 2023.10.04 @ 16:57:01 End 2023.10.04 @ 17:08:43 Sessions 1 Manual Loads 0 Difficulty Rogue Special Mode None Game No. 247 Rogue 244 Adventurer 3 Explorer 0 Win Type - Total 7 Types 6/0/1/0/0/0/0/0/0 Lore% 69 Gallery% 76 Achievement% 66 Wizard Run 0 Options --------- ASCII 0 Keyboard 0 Movement Numpad Keybinds 0 Fullscreen 1 Font 18/SmallcapsGlow Map View 76x50 Tactical HUD 1 Map Filters NONE Filters NONE Steam 1 RUN: 9dc3e23c-31be-4b51-a43b-88074b04aeab